Workbook

Sheet ISNTREE PRODUCT DETAILS
A2: ISNTREE PRODUCT DETAILS
J3: 0.3
A4: Product | I4: 소비자판매가 | J4: FOB PRICE (부가세 미포함) | K4: 제품규격 | O4: 박스 규격
A5: No | B5: Image | C5: ERP CODE | D5: 유럽용 제품 ERP CODE | E5: Barcode | F5: HS CODE | G5: Product Name (Eng) | H5: Product Name (Kor) | I5: Retail price in Korea (KRW) | J5: FOB PRICE (KRW) | K5: W*L*H (mm) | L5: Net weight (g) | M5: Weight of package(g) | N5: Gross weight (g) | O5: Out Box Q'ty | P5: W*L*H(mm) | Q5: Out Box Weight (kg)
A6: =MAX($A$5:A5)+1 -> 1 | C6: 20106R | E6: 8809540517533 | F6: 3304.99.1000 | G6: HYALURONIC ACID TONER_200ml | H6: 히아루론산_토너_200ml | I6: ₩16,000 | J6: ₩6,720 | K6: 48 * 48 * 167 | L6: 235 | M6: =N6-L6 -> 15 | N6: 250 | O6: 60 | P6: 520*320*190 | Q6: 15.5
A7: =MAX($A$5:A6)+1 -> 2 | C7: 20107R | E7: 8809540517540 | F7: 3304.99.1000 | G7: HYALURONIC ACID TONER_400ml | H7: 히아루론산_토너_400ml | I7: ₩29,000 | J7: ₩12,180 | K7: π60 * 185 | L7: 451 | M7: 0 | N7: 451 | O7: 34 | P7: 470*301*238 | Q7: 16
A8: =MAX($A$5:A7)+1 -> 3 | C8: 20109R | E8: 8809540517557 | F8: 3304.99.1000 | G8: HYALURONIC ACID TONER PLUS_200ml | H8: 히아루론산_토너_플러스_200ml | I8: ₩20,000 | J8: ₩8,400 | K8: 48 * 48 * 167 | L8: 235 | M8: 15 | N8: 250 | O8: 60 | P8: 520*320*190 | Q8: 15.5
A9: =MAX($A$5:A8)+1 -> 4 | C9: 20104R | E9: 8809474498151 | F9: 3304.99.1000 | G9: HYALURONIC ACID WATER MIST_100ml | H9: 히아루론산_워터미스트_100ml | I9: ₩16,500 | J9: ₩6,930 | K9: π45 * 80 | L9: 149 | M9: 0 | N9: 149 | O9: 67 | P9: 470*301*238 | Q9: 10.7
A10: =MAX($A$5:A9)+1 -> 5 | C10: 20110R | D10: 20113R | E10: 8809626566431 | F10: 3304.99.1000 | G10: HYALURONIC ACID WATER ESSENCE_50ml | H10: 히아루론산_워터에센스_50ml | I10: ₩26,000 | J10: ₩10,920 | K10: 41 * 44.5 * 120 | L10: 186 | M10: 17 | N10: 203 | O10: 60 | P10: 460*290*158 | Q10: 16.3
A11: =MAX($A$5:A10)+1 -> 6 | C11: 20117R | D11: 20119R | E11: 8809686383566 | F11: 3304.99.1000 | G11: HYALURONIC ACID AQUA GEL CREAM_100ml | H11: 히아루론산_아쿠아젤크림_100ml | I11: ₩20,000 | J11: ₩8,400 | K11: 45 * 46 * 157 | L11: 120 | M11: 15 | N11: 135 | O11: 60 | P11: 520*320*190 | Q11: 8.7
A12: =MAX($A$5:A11)+1 -> 7 | C12: 20101R | E12: 8809686383559 | F12: 3304.99.1000 | G12: HYALURONIC ACID MOIST CREAM_100ml | H12: 히아루론산_모이스트_크림_100ml | I12: ₩20,000 | J12: ₩8,400 | K12: 45 * 46 * 157 | L12: 120 | M12: 15 | N12: 135 | O12: 60 | P12: 520*320*190 | Q12: 8.7
A13: =MAX($A$5:A12)+1 -> 8 | C13: 20103R | E13: 8809581076341 | F13: 3304.99.1000 | G13: HYALURONIC ACID WATER SLEEPING MASK_100ml | H13: 히아루론산_워터슬리핑_마스크_100ml | I13: ₩22,000 | J13: ₩9,240 | K13: 46 * 46 * 165 | L13: 122 | M13: 16 | N13: 138 | O13: 66 | P13: 520*320*190 | Q13: 9.8
A14: =MAX($A$5:A13)+1 -> 9 | C14: 20114R | E14: 8809686384228 | F14: 3304.99.9000 | G14: HYALURONIC ACID AIRY SUN STICK_22g | H14: 히아루론산_에어리_선스틱_22g | I14: ₩26,000 | J14: ₩10,920 | K14: 55 * 26 * 83 | L14: 51 | M14: 7 | N14: 58 | O14: 72 | P14: 460*290*158 | Q14: 5.3
A15: =MAX($A$5:A14)+1 -> 10 | C15: 30318 | E15: 8809800940620 | F15: 3304.99.9000 | G15: HYALURONIC ACID WATERY SUN GEL_50ml X 2 EA | H15: 히아루론산_워터리_선젤_50ml_2ea | I15: ₩35,200 | J15: ₩14,784 | K15: 63 * 49 * 125 | L15: =L14*2 -> 102 | M15: =M14*2 -> 14 | N15: =N14*2 -> 116 | O15: 30 | P15: 350*310*150 | Q15: 3.84
A16: =MAX($A$5:A15)+1 -> 11 | C16: 20116R | E16: 8809686384204 | F16: 3304.99.9000 | G16: HYALURONIC ACID WATERY SUN GEL_50ml | H16: 히아루론산_워터리_선젤_50ml | I16: ₩22,000 | J16: ₩9,240 | K16: 65 * 30 * 130 | L16: 66 | M16: 13 | N16: 79 | O16: 50 | P16: 350*310*150 | Q16: 4.8
A17: =MAX($A$5:A16)+1 -> 12 | C17: 20125R | E17: 8809782554464 | F17: 3304.99.9000 | G17: HYALURONIC ACID NATURAL SUN CREAM_50ml | H17: 히아루론산 네추럴 선크림_50ml | I17: ₩22,000 | J17: ₩9,240 | K17: 65 * 30 * 130 | L17: 74 | M17: 12 | N17: 86 | O17: 50 | P17: 350*310*150 | Q17: 5.7
A18: =MAX($A$5:A17)+1 -> 13 | C18: 20105R | E18: 8809686389391 | F18: 3401.30.0000 | G18: HYALURONIC ACID LOW-pH CLEANSING FOAM_150ml | H18: 히아루론산_약산성_클렌징폼_150ml | I18: ₩18,000 | J18: ₩7,560 | K18: 55 * 55 * 185 | L18: 188 | M18: 19 | N18: 207 | O18: 40 | P18: 470*301*238 | Q18: 9.2
A19: =MAX($A$5:A18)+1 -> 14 | C19: 20126R | E19: 8809800940637 | F19: 3304.99.1000 | G19: ULTRA-LOW MOLECULAR HYALURONIC ACID TONER_300ml | H19: 초저분자_히아루론산_토너_300ml | I19: ₩21,000 | J19: ₩8,820 | K19: 62 * 62 * 148 | L19: 338 | M19: 19 | N19: 357 | O19: 32 | P19: 520*320*190 | Q19: 12.3
A20: =MAX($A$5:A19)+1 -> 15 | C20: 20127R | E20: 8809800940644 | F20: 3304.99.1000 | G20: ULTRA-LOW MOLECULAR HYALURONIC ACID SERUM_50ml | H20: 초저분자_히아루론산_세럼_50ml | I20: ₩22,000 | J20: ₩9,240 | K20: 42 * 42 * 108 | L20: 102 | M20: 9 | N20: 111 | O20: 60 | P20: 460*290*158 | Q20: 7.3
A21: =MAX($A$5:A20)+1 -> 16 | C21: 20129R | E21: 8809800940675 | F21: 3307.90.4000 | G21: ULTRA-LOW MOLECULAR HYALURONIC ACID MASK_10ea | H21: 초저분자 히아루론산 마스크 | I21: ₩30,000 | J21: ₩12,600 | K21: 139 * 38 * 179.5 | L21: 329 | M21: 28 | N21: 357 | O21: 30 | P21: 435*405*200 | Q21: 15.5
A22: =MAX($A$5:A21)+1 -> 17 | C22: 20405R | E22: 8809541190438 | F22: 3304.99.1000 | G22: ALOE SOOTHING TONER_200ml | H22: 알로에수딩_토너_200ml | I22: ₩16,500 | J22: ₩6,930 | K22: 48 * 48 * 167 | L22: 236 | M22: 14 | N22: 250 | O22: 60 | P22: 520*320*190 | Q22: 15.8
A23: =MAX($A$5:A22)+1 -> 18 | C23: 20406R | E23: 8809541190247 | F23: 3304.99.1000 | G23: ALOE SOOTHING EMULSION_120ml (2021) | H23: 알로에수딩_에멀전_120ml (2021) | I23: ₩15,500 | J23: ₩6,510 | K23: 46 * 46 * 140 | L23: 146 | M23: 12 | N23: 158 | O23: 72 | P23: 470*301*238 | Q23: 12.3
A24: =MAX($A$5:A23)+1 -> 19 | C24: 20408R | E24: 8809236798093 | F24: 3304.99.1000 | G24: ALOE SOOTHING GEL, MOISTURE_150ml | H24: 알로에수딩_젤_촉촉한타입_150ml | I24: ₩11,000 | J24: ₩4,620 | K24: 50 * 50 * 170 | L24: 175 | M24: 17 | N24: 192 | O24: 40 | P24: 470*301*238 | Q24: 8.2
A25: =MAX($A$5:A24)+1 -> 20 | C25: 20407R | E25: 8809800940699 | F25: 3304.99.1000 | G25: ALOE SOOTHING GEL FRESH TYPE_300ml | H25: 알로에수딩_젤_산뜻한타입_300ml | I25: ₩11,000 | J25: ₩4,620 | K25: 139 * 127 * 220 | L25: 372 | M25: 0 | N25: 372 | O25: 24 | P25: 405*298*245 | Q25: 9.3
A26: =MAX($A$5:A25)+1 -> 21 | C26: 20202R | D26: 20203R | E26: 8809541190421 | F26: 3304.99.1000 | G26: GREEN TEA FRESH TONER_200ml | H26: 그린티프레시_토너_200ml | I26: ₩16,500 | J26: ₩6,930 | K26: 48 * 48 * 167 | L26: 235 | M26: 14 | N26: 249 | O26: 60 | P26: 520*320*190 | Q26: 16
A27: =MAX($A$5:A26)+1 -> 22 | C27: 20204R | E27: 8809541190254 | F27: 3304.99.1000 | G27: GREEN TEA FRESH EMULSION_120ml | H27: 그린티프레시_에멀전_120ml | I27: ₩15,500 | J27: ₩6,510 | K27: 46 * 46 * 140 | L27: 145 | M27: 12 | N27: 157 | O27: 72 | P27: 470*301*238 | Q27: 12.3
A28: =MAX($A$5:A27)+1 -> 23 | C28: 20205R | E28: 8809738322154 | F28: 3304.99.1000 | G28: GREEN TEA FRESH SERUM_50ml | H28: 그린티프레쉬 세럼_50ml | I28: ₩26,000 | J28: ₩10,920 | K28: 45 * 45 * 135 | L28: 188 | M28: 17 | N28: 205 | O28: 60 | P28: 460*290*158 | Q28: 12.9
A29: =MAX($A$5:A28)+1 -> 24 | C29: 20206R | E29: 8809738592236 | F29: 3401.30.0000 | G29: GREEN TEA FRESH CLEANSER_120ml | H29: 그린티프레쉬_클렌저_120ml | I29: ₩16,000 | J29: ₩6,720 | K29: 50 * 50 * 165 | L29: 149 | M29: 17 | N29: 166 | O29: 40 | P29: 470*301*238 | Q29: 8.2
A30: =MAX($A$5:A29)+1 -> 25 | C30: 20302R | E30: 8809800940194 | F30: 3304.99.1000 | G30: MUGWORT CALMING AMPOULE_50ml | H30: 머그워트_카밍_앰플_50ml | I30: ₩32,000 | J30: ₩13,440 | K30: 41 * 44.5 * 120 | L30: 151 | M30: 14 | N30: 165 | O30: 60 | P30: 460*290*158 | Q30: 13
A31: =MAX($A$5:A30)+1 -> 26 | C31: 20304R | E31: 8809800940187 | F31: 3304.99.1000 | G31: MUGWORT CALMING CREAM_50ml | H31: 머그워트_카밍_크림 50ml | I31: ₩28,000 | J31: ₩11,760 | K31: 38 * 29 * 150 | L31: 59 | M31: 9 | N31: 68 | O31: 120 | P31: 520*320*190 | Q31: 8.9
A32: =MAX($A$5:A31)+1 -> 27 | C32: 20803R | D32: 20804R | E32: 8806135245765 | F32: 3304.99.1000 | G32: TW-REAL BIFIDA AMPOULE_50ml | H32: 티더블유리얼_비피다_앰플_50ml | I32: ₩24,500 | J32: ₩10,290 | K32: 41 * 44.5 * 120 | L32: 150 | M32: 24 | N32: 174 | O32: 48 | P32: 275*375*240 | Q32: 10.2
A33: =MAX($A$5:A32)+1 -> 28 | C33: 20801R | D33: 20802R | E33: 8806135244911 | F33: 3304.99.1000 | G33: TW-REAL EYE CREAM_30ml | H33: 티더블유리얼_아이크림_30ml | I33: ₩16,800 | J33: ₩7,056 | K33: 29 * 29 * 158 | L33: 41 | M33: 9 | N33: 50 | O33: 150 | P33: 470*301*238 | Q33: 8
A34: =MAX($A$5:A33)+1 -> 29 | C34: 20701R | E34: 8809187049350 | F34: 3304.99.1000 | G34: C-NIACIN TONING AMPOULE_50ml | H34: 씨-나이아신_토닝앰플_50ml | I34: ₩20,500 | J34: ₩8,610 | K34: 41 * 44.5 * 120 | L34: 149 | M34: 15 | N34: 164 | O34: 100 | P34: 470*301*238 | Q34: 17.5
A35: =MAX($A$5:A34)+1 -> 30 | C35: 20703R | E35: 8809187049428 | F35: 3304.99.1000 | G35: C-NIACIN TONING CREAM_50ml | H35: 씨-나이아신토닝_크림_50ml | I35: ₩16,800 | J35: ₩7,056 | K35: 40 * 30 * 142 | L35: 59 | M35: 9 | N35: 68 | O35: 108 | P35: 520*320*190 | Q35: 8.4
A36: =MAX($A$5:A35)+1 -> 31 | C36: 20601R | E36: 8809800940156 | F36: 3304.99.1000 | G36: CHESTNUT_BHA0.9% CLEAR TONER_200ml | H36: 체스트넛_바하0.9%_클리어토너_200ml | I36: ₩16,800 | J36: ₩7,056 | K36: 48 * 48 * 167 | L36: 236 | M36: 16 | N36: 252 | O36: 60 | P36: 520*320*190 | Q36: 15.2
A37: =MAX($A$5:A36)+1 -> 32 | C37: 20602R | E37: 8809800940149 | F37: 3304.99.1000 | G37: CHESTNUT AHA 8% CLEAR ESSENCE_100ml | H37: 체스트넛_아하8%_클리어에센스_100ml | I37: ₩15,000 | J37: ₩6,300 | K37: 44 * 44 * 135.5 | L37: 131 | M37: 13 | N37: 144 | O37: 60 | P37: 460*290*158 | Q37: 9.3
A38: =MAX($A$5:A37)+1 -> 33 | C38: 20605R | E38: 8809783322666 | F38: 3304.99.1000 | G38: CHESTNUT BHA 2% CLEAR LIQUID_100ml | H38: 체스트넛 바하 2% 클리어 리퀴드_100ml | I38: ₩23,000 | J38: ₩9,660 | K38: 45 * 45 *145 | L38: 160 | M38: 12 | N38: 172 | O38: 60 | P38: 460*290*158 | Q38: 11.6
A39: =MAX($A$5:A38)+1 -> 34 | C39: 20604R | E39: 8809800940132 | F39: 3304.99.1000 | G39: CHESTNUT PHA 5% CLEAR CREAM_100ml | H39: 체스트넛_파하_5%클리어_크림_100ml | I39: ₩22,000 | J39: ₩9,240 | K39: 41 * 41 * 159 | L39: 122 | M39: 13 | N39: 135 | O39: 66 | P39: 520*320*190 | Q39: 9.7
A40: =MAX($A$5:A39)+1 -> 35 | C40: 20606R | E40: 8809800940606 | F40: 3401.30.0000 | G40: CHESTNUT LHA JELLY CLEANSING OIL_150ml | H40: 체스트넛_라하_젤리 클렌징 오일_150ml | I40: ₩23,000 | J40: ₩9,660 | K40: 48 * 48 * 178 | L40: 162 | M40: 18 | N40: 180 | O40: 40 | P40: 470*301*238 | Q40: 8.1
A41: =MAX($A$5:A40)+1 -> 36 | C41: 20309R | E41: 8809800940163 | F41: 3401.20.0000 | G41: MUGWORT CALMING POWDER WASH_1g*25ea | H41: 머그워트_카밍_파우더워시_25매(1g/매) | I41: ₩23,000 | J41: ₩9,660 | K41: 75 * 75* 95 | L41: 41 | M41: 20 | N41: 61 | O41: 50 | P41: 433*430*240 | Q41: 4.5
A42: =MAX($A$5:A41)+1 -> 37 | C42: 20313R | E42: 8809800940217 | F42: 3401.20.0000 | G42: MUGWORT CALMING POWDER WASH_15g | H42: 머그워트_카밍_파우더워시_15g | I42: ₩14,500 | J42: ₩6,090 | K42: 41 * 41 * 82 | L42: 60 | M42: 7 | N42: 67 | O42: 60 | P42: 460*290*158 | Q42: 4.7
A43: =MAX($A$5:A42)+1 -> 38 | C43: 20306R | E43: 8809800940231 | F43: 3307.90.4000 | G43: MUGWORT CALMING GAUZE MASK_10ea | H43: 머그워트 카밍_거즈마스크_10매 | I43: ₩30,000 | J43: ₩12,600 | K43: 140 * 38 * 180 | L43: 310 | M43: 31 | N43: 341 | O43: 30 | P43: 435*405*200 | Q43: 10.8
A44: =MAX($A$5:A43)+1 -> 39 | C44: 20902R | E44: 8809581076334 | F44: 3304.99.1000 | G44: REAL ROSE CALMING MASK_100ml | H44: 리얼로즈_카밍_마스크_100ml | I44: ₩20,000 | J44: ₩8,400 | K44: 46 * 46 * 165 | L44: 135 | M44: 15 | N44: 150 | O44: 66 | P44: 520*320*190 | Q44: 9.9
A45: =MAX($A$5:A44)+1 -> 40 | C45: 20310R | D45: 20311R | E45: 8809800940200 | F45: 3304.99.1000 | G45: MUGWORT CALMING CLAY MASK_100ml | H45: 머그워트_카밍_클레이마스크_100ml | I45: ₩20,000 | J45: ₩8,400 | K45: 46 * 46 * 165 | L45: 135 | M45: 15 | N45: 150 | O45: 66 | P45: 520*320*190 | Q45: 11
A46: =MAX($A$5:A45)+1 -> 41 | C46: 21005R | E46: 8809800940460 | F46: 3307.90.9000 | G46: ONION NEWPAIR CLEAR PAD_250ml (60ea) | H46: 어니언_뉴페어_클리어패드_250ml (60매) | I46: ₩28,000 | J46: ₩11,760 | K46: 95 * 95 * 85 | L46: 369 | M46: 24 | N46: 393 | O46: 30 | P46: 520*320*190 | Q46: 12.6
A47: =MAX($A$5:A46)+1 -> 42 | C47: 21001 | E47: 8809783322642 | F47: 3304.99.1000 | G47: ONION NEWPAIR ESSENCE TONER_200ml | H47: 어니언_뉴페어_에센스_토너_200ml | I47: ₩23,000 | J47: ₩9,660 | K47: 45 * 45 * 178 | L47: 250 | M47: 16 | N47: 266 | O47: 54 | P47: 470*301*238 | Q47: 15
A48: =MAX($A$5:A47)+1 -> 43 | C48: 21008R | E48: 8809800940712 | F48: 3304.99.1000 | G48: ONION NEWPAIR B5 AMPOULE_50ml | H48: 어니언_뉴페어_B5_앰플_50ml | I48: ₩24,000 | J48: ₩10,080 | K48: 40.5 * 40.5 * 106 | L48: 93 | M48: 9 | N48: 102 | O48: 60 | P48: 460*290*158 | Q48: 6.7
A49: =MAX($A$5:A48)+1 -> 44 | C49: 21003R | E49: 8809783322635 | F49: 3304.99.1000 | G49: ONION NEWPAIR GEL CREAM_50ml | H49: 어니언_뉴페어_겔_크림_50ml | I49: ₩32,000 | J49: ₩13,440 | K49: 35 * 35 * 140 | L49: 60 | M49: 9 | N49: 69 | O49: 120 | P49: 520*320*190 | Q49: 7.5
A50: =MAX($A$5:A49)+1 -> 45 | C50: 21002R | E50: 8809783322659 | F50: 3401.30.0000 | G50: ONION NEWPAIR CLEANSING FOAM_150ml | H50: 어니언_뉴페어_클렌징_폼_150ml | I50: ₩18,000 | J50: ₩7,560 | K50: 52 * 52 * 182 | L50: 185 | M50: 20 | N50: 205 | O50: 40 | P50: 470*301*238 | Q50: 8.8
A51: =MAX($A$5:A50)+1 -> 46 | C51: 21201R | E51: 8809800940125 | F51: 3304.99.1000 | G51: YAM ROOT VEGAN MILK CLEANSER_220ml | H51: 참마_비건_밀크_클렌저_220ml | I51: ₩25,000 | J51: ₩10,500 | K51: 57*57*142 | L51: 248 | M51: 16 | N51: 264 | O51: 40 | P51: 520*320*190 | Q51: 11.2
A52: =MAX($A$5:A51)+1 -> 47 | C52: 21202R | E52: 8809800940514 | F52: 3304.99.1000 | G52: YAM ROOT VEGAN MILK TONER_200ml | H52: 참마 비건_밀크_보습 토너_200ml | I52: ₩20,000 | J52: ₩8,400 | K52: 53*53*120 | L52: 239 | M52: 16 | N52: 255 | O52: 28 | P52: 460*290*158 | Q52: 7.7
A53: =MAX($A$5:A52)+1 -> 48 | C53: 21203R | E53: 8809800940521 | F53: 3304.99.1000 | G53: YAM ROOT VEGAN MILK CREAM_80ml | H53: 참마 비건_밀크_고보습 크림_80ml | I53: ₩28,000 | J53: ₩11,760 | K53: 48*48*120 | L53: 100 | M53: 14 | N53: 114 | O53: 40 | P53: 460*290*158 | Q53: 5.2
A54: =MAX($A$5:A53)+1 -> 49 | C54: 20907R | E54: 8809800940118 | F54: 3307.90.4000 | G54: PUFFY FACE FIT COOLING MASK_10ea | H54: 퍼피_페이스_핏_쿨링_마스크_10ea | I54: ₩40,000 | J54: ₩16,800 | K54: 140 * 38 * 180 | L54: 320 | M54: 29 | N54: 349 | O54: 30 | P54: 435*405*200 | Q54: 11.6
A55: =MAX($A$5:A54)+1 -> 50 | C55: 21101R | E55: 8809800940057 | F55: 3304.99.1000 | G55: COMFORTABLE MAGNESIUM TONER_500ml | H55: 컴포터블 마그네슘 토너_500ml | I55: ₩25,000 | J55: ₩10,500 | K55: π60 * 198 | L55: =551-47 -> 504 | M55: 47 | N55: 551 | O55: 32 | P55: 470*301*238 | Q55: 18.5
A56: =MAX($A$5:A55)+1 -> 51 | C56: 21009R | E56: 8809800940736 | F56: 3304.99-9000 | G56: ONION NEWPAIR SPOT PATCH [BASIC]_24 patches (10mmx12ea/12mmx12ea) | H56: 어니언 뉴페어 스팟 패치 [베이직] * 온라인 낱장 판매 불가 | I56: ₩4,000 | J56: ₩1,680 | K56: 110*180 | L56: 2 | M56: 13 | N56: 15 | O56: 100 | P56: 270*135*195 | Q56: 1.08
A57: =MAX($A$5:A56)+1 -> 52 | C57: 21010R | E57: 8809800940729 | F57: 3304.99-9000 | G57: ONION NEWPAIR SPOT PATCH [SKIN FIT]_15 patches (12mmx15ea) | H57: 어니언 뉴페어 스팟 패치 [스킨 핏] * 온라인 낱장 판매 불가 | I57: ₩4,000 | J57: ₩1,680 | K57: 110*180 | L57: 1 | M57: 9 | N57: 10 | O57: 100 | P57: 270*135*195 | Q57: 0.90
A58: =MAX($A$5:A57)+1 -> 53 | C58: 21301R | E58: 8809800940774 | F58: 3304.99.1000 | G58: HYPER NIACINAMIDE 20 SERUM_20ml | H58: 하이퍼 나이아신아마이드 20 세럼_20ml | I58: ₩18,000 | J58: ₩7,560 | K58: 49.5*32.5*84 | L58: 30 | M58: 8 | N58: 38 | O58: 180 | P58: 520*320*190 | Q58: 11.65
A59: =MAX($A$5:A58)+1 -> 54 | C59: 21302R | E59: 8809800940798 | F59: 3304.99.1000 | G59: HYPER RETINOL EX 1.0 SERUM_20ml | H59: 하이퍼 레티놀 이엑스 1.0 세럼_20ml | I59: ₩18,000 | J59: ₩7,560 | K59: 49.5*32.5*84 | L59: 30 | M59: 8 | N59: 38 | O59: 180 | P59: 520*320*190 | Q59: 11.65
A60: =MAX($A$5:A59)+1 -> 55 | C60: 21303R | E60: 8809800940781 | F60: 3304.99.1000 | G60: HYPER VITAMIN C 23 SERUM_20ml | H60: 하이퍼 비타민 씨 23 세럼_20ml | I60: ₩20,000 | J60: ₩8,400 | K60: 49.5*32.5*84 | L60: 30 | M60: 8 | N60: 38 | O60: 180 | P60: 520*320*190 | Q60: 12.21
A61: =MAX($A$5:A60)+1 -> 56 | C61: 21304R | E61: 8809800940880 | F61: 3304.99.1000 | G61: HYPER ACID4 AHA BHA PHA LHA 30 SERUM_20ml | H61: 하이퍼 애시드4 아하 바하 파하 라하 30 세럼_20ml | I61: ₩18,000 | J61: ₩7,560 | K61: 49.5*32.5*84 | L61: 30 | M61: 8 | N61: 38 | O61: 180 | P61: 520*320*190 | Q61: 12.00
A62: =MAX($A$5:A61)+1 -> 57 | C62: 21204R | E62: 8809800940750 | F62: 3304.99.9000 | G62: HYALURONIC ACID DAILY SUN GEL _50ml | H62: 히아루론산 데일리 선 젤_50ml | I62: ₩18,000 | J62: ₩7,560 | K62: 50*30*122 | L62: 65.5 | M62: =N62-L62 -> 13 | N62: 78.5 | O62: 50 | P62: 350*310*150 | Q62: 4.50
A63: =MAX($A$5:A62)+1 -> 58 | C63: 21011R | E63: 8809800940767 | F63: 3304.99.9000 | G63: YAM ROOT MILK TONE UP SUN CREAM_50ml | H63: 참마 밀크 톤업 선 크림_50ml | I63: ₩26,000 | J63: ₩10,920 | K63: 50*30*122 | L63: 65.5 | M63: 13 | N63: 78.5 | O63: 50 | P63: 350*310*150 | Q63: 5.10
A64: =MAX($A$5:A63)+1 -> 59 | C64: 21101R | E64: 8809800940057 | F64: 3304.99.9000 | G64: ONION NEWPAIR SUNSCREEN_50ml | H64: 어니언 뉴페어 선스크린_50ml | I64: ₩20,000 | J64: ₩8,400 | K64: 50*30*122 | L64: 65.5 | M64: 13 | N64: 78.5 | O64: 50 | P64: 350*310*150 | Q64: 4.60
A65: ※Recommended Retail Price Please keep the Recommended Retail Price as the above to keep our partners' profit. If the Recommended Retail Price is not kept, we might not to supply our products. If you need to discount the selling price for sale or event, please inform ISNTREE in advanced. Thank you for your cooperation and keeping it confidential. ※All Prices quoted are valid for 3 months from the date of receipt of this price list. ※The price could be adjusted depands on the exchage fluctuations. ※ISNTREE RP Information Company name: EcoMundo Address: 195, rue Jean-Jacques Rousseau, 92130 Issy-les-Moulineaux Tel: +33 (0)1 83 64 20 54 ATTN: Seonyeong Lee (Project Manager) / Agathe Goyon (Cosmetics Director)

Sheet ISNTREE SAMPLE LIST
A1: ISNTREE SAMPLE LIST
A2: No. | B2: Image | C2: ERP CODE | D2: Barcode | E2: Product Name (Eng) | F2: Product Name (Kor) | G2: Our Box Q'ty | H2: W*L*H (mm) | I2: Out Box Weight (kg)
A3: =MAX($A$2:A2)+1 -> 1 | C3: 10107R | D3: 8809689373915 | E3: HYALURONIC ACID TONER_20ml | F3: 이즈앤트리_히아루론산_토너_미니어처_20ml | G3: 450 | H3: 470*301*238 | I3: 16
A4: =MAX($A$2:A3)+1 -> 2 | C4: 10111R | D4: 8809686389872 | E4: HYALURONIC ACID AQUA GEL CREAM (RENEWED)_2ml | F4: 이즈앤트리_히아루론산_아쿠아_젤크림_사셰_2ml | G4: 2500 | H4: 450*300*280 | I4: 9.5
A5: =MAX($A$2:A4)+1 -> 3 | C5: 10112R | D5: 8809800940453 | E5: HYALURONIC ACID MOIST CREAM_2ml | F5: 이즈앤트리_히아루론산_모이스트-크림_사셰_2ml | G5: 3000 | H5: 450*300*280 | I5: 12.5
A6: =MAX($A$2:A5)+1 -> 4 | C6: 10114R | D6: 8809800940255 | E6: HYALURONIC ACID WATER ESSENCE_2ml | F6: 이즈앤트리_히아루론산_워터 에센스_사셰_2ml | G6: 3000 | H6: 450*300*280 | I6: 11.2
A7: =MAX($A$2:A6)+1 -> 5 | C7: 10116R | D7: 8809782555614 | E7: HYALURONIC ACID WATERY SUN GEL_2ml | F7: 이즈앤트리_히아루론산_워터리 선젤_사셰_2ml | G7: 2500 | H7: 450*300*280 | I7: 9.5
A8: =MAX($A$2:A7)+1 -> 6 | C8: 10117R | D8: 8809800940262 | E8: HYALURONIC ACID NATURAL SUN CREAM_2ml | F8: 이즈앤트리_히아루론산_네추럴 선크림_사셰_2ml | G8: 2500 | H8: 450*300*280 | I8: 9.9
A9: =MAX($A$2:A8)+1 -> 7 | C9: 10103R | D9: 8809800940408 | E9: HYALURONIC ACID WATERY SUN GEL_10ml | F9: 이즈앤트리_히아루론산_워터리 선젤_미니어처_10ml | G9: 600 | H9: 470*301*238 | I9: 9
A10: =MAX($A$2:A9)+1 -> 8 | C10: 10119R | D10: 8809800940682 | E10: ULTRA-LOW MOLECULAR HYALURONIC ACID TONER_2ml | F10: 초저분자_히아루론산_토너_사셰_2ml | G10: 3000 | H10: 450*300*280 | I10: 11.2
A11: =MAX($A$2:A10)+1 -> 9 | C11: 10118R | D11: 8809800940651 | E11: ULTRA-LOW MOLECULAR HYALURONIC ACID SERUM_2ml | F11: 초저분자_히아루론산_세럼_사셰_2ml | G11: 3000 | H11: 450*300*280 | I11: 11.2
A12: =MAX($A$2:A11)+1 -> 10 | C12: 10601R | D12: 8809800940248 | E12: CHESTNUT AHA 8% CLEAR ESSENCE_2ml | F12: 이즈앤트리_체스트넛_아하8%_클리어에센스_2ml | G12: 3000 | H12: 450*300*280 | I12: 10.9
A13: =MAX($A$2:A12)+1 -> 11 | C13: 10602R | D13: 8809088970357 | E13: CHESTNUT AHA 8% CLEAR ESSENCE_20ml | F13: 이즈앤트리_체스트넛_아하8%_클리어에센스_20ml | G13: 450 | H13: 470*301*238 | I13: 14.2
A14: =MAX($A$2:A13)+1 -> 12 | C14: 10901R | D14: 8809783322673 | E14: CHESTNUT BHA 2% CLEAR LIQUID_2ml | F14: 이즈앤트리_체스트넛_바하 2% 클리어리퀴드_사셰_2ml | G14: 3000 | H14: 450*300*280 | I14: 10.9
A15: =MAX($A$2:A14)+1 -> 13 | C15: 10801R | D15: 8806135250219 | E15: TW-REAL BIFIDA AMPOULE_2ml | F15: 이즈앤트리_티더블유리얼_비피다_앰플_샤셰_2ml | G15: 3000 | H15: 450*300*280 | I15: 10.9
A16: =MAX($A$2:A15)+1 -> 14 | C16: 10802R | D16: 8809800940293 | E16: TW-REAL EYE CREAM _2ml | F16: 이즈앤트리_티더블유리얼_아이크림_샤셰_2ml | G16: 2000 | H16: 450*300*280 | I16: 6.9
A17: =MAX($A$2:A16)+1 -> 15 | C17: 10202R | D17: 8809541199813 | E17: GREEN TEA FRESH TONER_20ml | F17: 그린티프레시_토너_20ml | G17: 450 | H17: 470*301*238 | I17: 16
A18: =MAX($A$2:A17)+1 -> 16 | C18: 10203R | D18: 8809800940286 | E18: GREEN TEA FRESH SERUM_2ml | F18: 이즈앤트리_그린티프레쉬 세럼_샤셰_2ml | G18: 2000 | H18: 460*290*158 | I18: 7.6
A19: =MAX($A$2:A18)+1 -> 17 | C19: 10206R | D19: 8809800940361 | E19: GREEN TEA FRESH CLEANSER_20ml | F19: 그린티프레쉬_클렌저_20ml | G19: 400 | H19: 470*301*238 | I19: 11.5
A20: =MAX($A$2:A19)+1 -> 18 | C20: 10204R | D20: 8809800940279 | E20: GREEN TEA FRESH CLEANSER_2ml | F20: 이즈앤트리_그린티프레쉬_클렌저_2ml | G20: 2000 | H20: 430*320*300 | I20: 7.4
A21: =MAX($A$2:A20)+1 -> 19 | C21: 11201R | D21: 880980094170 | E21: YAM ROOT VEGAN MILK CLEANSER_3ml | F21: 이즈앤트리_참마 비건 클렌징밀크_사셰_3ml | G21: 3000 | H21: 450*300*280 | I21: 13.8
A22: =MAX($A$2:A21)+1 -> 20 | C22: 10305R | D22: 8809800940378 | E22: MUGWORT CALMING CLAY MASK_20ml | F22: 머그워트_카밍_클레이마스크_20ml | G22: 400 | H22: 470*301*238 | I22: 13.1
A23: =MAX($A$2:A22)+1 -> 21 | C23: 10302R | D23: 8809800940330 | E23: MUGWORT CALMING CLAY MASK_3ml | F23: 이즈앤트리_머그워트_카밍_클레이마스크_3ml | G23: 2000 | H23: 450*300*280 | I23: 11
A24: =MAX($A$2:A23)+1 -> 22 | C24: 11003R | D24: 8809800940309 | E24: ONION NEWPAIR GEL CREAM_2ml | F24: 이즈앤트리_어니언 뉴페어 겔크림_사셰_2ml | G24: 2000 | H24: 450*300*280 | I24: 7.6
A25: =MAX($A$2:A24)+1 -> 23 | C25: 11005R | D25: 8809800940477 | E25: ONION NEWPAIR CLEAR PAD_8ml (2ea) | F25: 어니언뉴페어_클리어 패드_8ml(2매입) | G25: 400 | H25: 460*290*158 | I25: 6
A26: =MAX($A$2:A25)+1 -> 24 | C26: 11205R | D26: 8809800940897 | E26: HYALURONIC ACID DAILY SUN GEL_2ml | F26: 히아루론산 데일리 선 젤_2ml | G26: 2500 | H26: 450*300*280 | I26: 9.4
A27: =MAX($A$2:A26)+1 -> 25 | C27: 11206R | D27: 8809800940903 | E27: YAM ROOT MILK TONE UP SUN CREAM_2ml | F27: 참마 밀크 톤업 선 크림_2ml | G27: 2500 | H27: 450*300*280 | I27: 10.6
A28: =MAX($A$2:A27)+1 -> 26 | C28: 11207R | D28: 8809800940804 | E28: ONION NEWPAIR SUNSCREEN_2ml | F28: 어니언 뉴페어 선스크린_2ml | G28: 2500 | H28: 450*300*280 | I28: 9.4
A29: =MAX($A$2:A28)+1 -> 27 | C29: 11208R | D29: 8809800940910 | E29: ONION NEWPAIR SUNSCREEN_10ml | F29: 어니언 뉴페어 선스크린_10ml | G29: 600 | H29: 470*301*238 | I29: 9.6
A30: =MAX($A$2:A29)+1 -> 28 | C30: 30324 | D30: 8809800940989 | E30: ISNTREE TRAVEL KIT | F30: 트래블키트_5종(+에코파우치포함) | G30: 30 | H30: 485*390*195 | I30: 7.3

Sheet PO FORM
A2: ISNTREE PO FORM
A3: No | B3: Image | C3: ERP CODE | D3: CPNP ERP CODE | E3: CPNP REFERENCE | F3: Product | G3: Out Box Q'ty
A4: =MAX($A$3:A3)+1 -> 1 | C4: ='ISNTREE PRODUCT DETAILS'!C6 -> 20106R | F4: ='ISNTREE PRODUCT DETAILS'!G6 -> HYALURONIC ACID TONER_200ml | G4: ='ISNTREE PRODUCT DETAILS'!O6 -> 60
A5: =MAX($A$3:A4)+1 -> 2 | C5: ='ISNTREE PRODUCT DETAILS'!C7 -> 20107R | F5: ='ISNTREE PRODUCT DETAILS'!G7 -> HYALURONIC ACID TONER_400ml | G5: ='ISNTREE PRODUCT DETAILS'!O7 -> 34
A6: =MAX($A$3:A5)+1 -> 3 | C6: ='ISNTREE PRODUCT DETAILS'!C8 -> 20109R | F6: ='ISNTREE PRODUCT DETAILS'!G8 -> HYALURONIC ACID TONER PLUS_200ml | G6: ='ISNTREE PRODUCT DETAILS'!O8 -> 60
A7: =MAX($A$3:A6)+1 -> 4 | C7: ='ISNTREE PRODUCT DETAILS'!C9 -> 20104R | F7: ='ISNTREE PRODUCT DETAILS'!G9 -> HYALURONIC ACID WATER MIST_100ml | G7: ='ISNTREE PRODUCT DETAILS'!O9 -> 67
A8: =MAX($A$3:A7)+1 -> 5 | C8: ='ISNTREE PRODUCT DETAILS'!C10 -> 20110R | F8: ='ISNTREE PRODUCT DETAILS'!G10 -> HYALURONIC ACID WATER ESSENCE_50ml | G8: ='ISNTREE PRODUCT DETAILS'!O10 -> 60
A9: =MAX($A$3:A8)+1 -> 6 | C9: ='ISNTREE PRODUCT DETAILS'!C11 -> 20117R | F9: ='ISNTREE PRODUCT DETAILS'!G11 -> HYALURONIC ACID AQUA GEL CREAM_100ml | G9: ='ISNTREE PRODUCT DETAILS'!O11 -> 60
A10: =MAX($A$3:A9)+1 -> 7 | C10: ='ISNTREE PRODUCT DETAILS'!C12 -> 20101R | F10: ='ISNTREE PRODUCT DETAILS'!G12 -> HYALURONIC ACID MOIST CREAM_100ml | G10: ='ISNTREE PRODUCT DETAILS'!O12 -> 60
A11: =MAX($A$3:A10)+1 -> 8 | C11: ='ISNTREE PRODUCT DETAILS'!C13 -> 20103R | F11: ='ISNTREE PRODUCT DETAILS'!G13 -> HYALURONIC ACID WATER SLEEPING MASK_100ml | G11: ='ISNTREE PRODUCT DETAILS'!O13 -> 66
A12: =MAX($A$3:A11)+1 -> 9 | C12: ='ISNTREE PRODUCT DETAILS'!C14 -> 20114R | F12: ='ISNTREE PRODUCT DETAILS'!G14 -> HYALURONIC ACID AIRY SUN STICK_22g | G12: ='ISNTREE PRODUCT DETAILS'!O14 -> 72
A13: =MAX($A$3:A12)+1 -> 10 | C13: ='ISNTREE PRODUCT DETAILS'!C15 -> 30318 | F13: ='ISNTREE PRODUCT DETAILS'!G15 -> HYALURONIC ACID WATERY SUN GEL_50ml X 2 EA | G13: ='ISNTREE PRODUCT DETAILS'!O15 -> 30
A14: =MAX($A$3:A13)+1 -> 11 | C14: ='ISNTREE PRODUCT DETAILS'!C16 -> 20116R | F14: ='ISNTREE PRODUCT DETAILS'!G16 -> HYALURONIC ACID WATERY SUN GEL_50ml | G14: ='ISNTREE PRODUCT DETAILS'!O16 -> 50
A15: =MAX($A$3:A14)+1 -> 12 | C15: ='ISNTREE PRODUCT DETAILS'!C17 -> 20125R | F15: ='ISNTREE PRODUCT DETAILS'!G17 -> HYALURONIC ACID NATURAL SUN CREAM_50ml | G15: ='ISNTREE PRODUCT DETAILS'!O17 -> 50
A16: =MAX($A$3:A15)+1 -> 13 | C16: ='ISNTREE PRODUCT DETAILS'!C18 -> 20105R | F16: ='ISNTREE PRODUCT DETAILS'!G18 -> HYALURONIC ACID LOW-pH CLEANSING FOAM_150ml | G16: ='ISNTREE PRODUCT DETAILS'!O18 -> 40
A17: =MAX($A$3:A16)+1 -> 14 | C17: ='ISNTREE PRODUCT DETAILS'!C19 -> 20126R | F17: ='ISNTREE PRODUCT DETAILS'!G19 -> ULTRA-LOW MOLECULAR HYALURONIC ACID TONER_300ml | G17: ='ISNTREE PRODUCT DETAILS'!O19 -> 32
A18: =MAX($A$3:A17)+1 -> 15 | C18: ='ISNTREE PRODUCT DETAILS'!C20 -> 20127R | F18: ='ISNTREE PRODUCT DETAILS'!G20 -> ULTRA-LOW MOLECULAR HYALURONIC ACID SERUM_50ml | G18: ='ISNTREE PRODUCT DETAILS'!O20 -> 60
A19: =MAX($A$3:A18)+1 -> 16 | C19: ='ISNTREE PRODUCT DETAILS'!C21 -> 20129R | F19: ='ISNTREE PRODUCT DETAILS'!G21 -> ULTRA-LOW MOLECULAR HYALURONIC ACID MASK_10ea | G19: ='ISNTREE PRODUCT DETAILS'!O21 -> 30
A20: =MAX($A$3:A19)+1 -> 17 | C20: ='ISNTREE PRODUCT DETAILS'!C22 -> 20405R | F20: ='ISNTREE PRODUCT DETAILS'!G22 -> ALOE SOOTHING TONER_200ml | G20: ='ISNTREE PRODUCT DETAILS'!O22 -> 60
A21: =MAX($A$3:A20)+1 -> 18 | C21: ='ISNTREE PRODUCT DETAILS'!C23 -> 20406R | F21: ='ISNTREE PRODUCT DETAILS'!G23 -> ALOE SOOTHING EMULSION_120ml (2021) | G21: ='ISNTREE PRODUCT DETAILS'!O23 -> 72
A22: =MAX($A$3:A21)+1 -> 19 | C22: ='ISNTREE PRODUCT DETAILS'!C24 -> 20408R | F22: ='ISNTREE PRODUCT DETAILS'!G24 -> ALOE SOOTHING GEL, MOISTURE_150ml | G22: ='ISNTREE PRODUCT DETAILS'!O24 -> 40
A23: =MAX($A$3:A22)+1 -> 20 | C23: ='ISNTREE PRODUCT DETAILS'!C25 -> 20407R | F23: ='ISNTREE PRODUCT DETAILS'!G25 -> ALOE SOOTHING GEL FRESH TYPE_300ml | G23: ='ISNTREE PRODUCT DETAILS'!O25 -> 24
A24: =MAX($A$3:A23)+1 -> 21 | C24: ='ISNTREE PRODUCT DETAILS'!C26 -> 20202R | F24: ='ISNTREE PRODUCT DETAILS'!G26 -> GREEN TEA FRESH TONER_200ml | G24: ='ISNTREE PRODUCT DETAILS'!O26 -> 60
A25: =MAX($A$3:A24)+1 -> 22 | C25: ='ISNTREE PRODUCT DETAILS'!C27 -> 20204R | F25: ='ISNTREE PRODUCT DETAILS'!G27 -> GREEN TEA FRESH EMULSION_120ml | G25: ='ISNTREE PRODUCT DETAILS'!O27 -> 72
A26: =MAX($A$3:A25)+1 -> 23 | C26: ='ISNTREE PRODUCT DETAILS'!C28 -> 20205R | F26: ='ISNTREE PRODUCT DETAILS'!G28 -> GREEN TEA FRESH SERUM_50ml | G26: ='ISNTREE PRODUCT DETAILS'!O28 -> 60
A27: =MAX($A$3:A26)+1 -> 24 | C27: ='ISNTREE PRODUCT DETAILS'!C29 -> 20206R | F27: ='ISNTREE PRODUCT DETAILS'!G29 -> GREEN TEA FRESH CLEANSER_120ml | G27: ='ISNTREE PRODUCT DETAILS'!O29 -> 40
A28: =MAX($A$3:A27)+1 -> 25 | C28: ='ISNTREE PRODUCT DETAILS'!C30 -> 20302R | F28: ='ISNTREE PRODUCT DETAILS'!G30 -> MUGWORT CALMING AMPOULE_50ml | G28: ='ISNTREE PRODUCT DETAILS'!O30 -> 60
A29: =MAX($A$3:A28)+1 -> 26 | C29: ='ISNTREE PRODUCT DETAILS'!C31 -> 20304R | F29: ='ISNTREE PRODUCT DETAILS'!G31 -> MUGWORT CALMING CREAM_50ml | G29: ='ISNTREE PRODUCT DETAILS'!O31 -> 120
A30: =MAX($A$3:A29)+1 -> 27 | C30: ='ISNTREE PRODUCT DETAILS'!C32 -> 20803R | F30: ='ISNTREE PRODUCT DETAILS'!G32 -> TW-REAL BIFIDA AMPOULE_50ml | G30: ='ISNTREE PRODUCT DETAILS'!O32 -> 48
A31: =MAX($A$3:A30)+1 -> 28 | C31: ='ISNTREE PRODUCT DETAILS'!C33 -> 20801R | F31: ='ISNTREE PRODUCT DETAILS'!G33 -> TW-REAL EYE CREAM_30ml | G31: ='ISNTREE PRODUCT DETAILS'!O33 -> 150
A32: =MAX($A$3:A31)+1 -> 29 | C32: ='ISNTREE PRODUCT DETAILS'!C34 -> 20701R | F32: ='ISNTREE PRODUCT DETAILS'!G34 -> C-NIACIN TONING AMPOULE_50ml | G32: ='ISNTREE PRODUCT DETAILS'!O34 -> 100
A33: =MAX($A$3:A32)+1 -> 30 | C33: ='ISNTREE PRODUCT DETAILS'!C35 -> 20703R | F33: ='ISNTREE PRODUCT DETAILS'!G35 -> C-NIACIN TONING CREAM_50ml | G33: ='ISNTREE PRODUCT DETAILS'!O35 -> 108
A34: =MAX($A$3:A33)+1 -> 31 | C34: ='ISNTREE PRODUCT DETAILS'!C36 -> 20601R | F34: ='ISNTREE PRODUCT DETAILS'!G36 -> CHESTNUT_BHA0.9% CLEAR TONER_200ml | G34: ='ISNTREE PRODUCT DETAILS'!O36 -> 60
A35: =MAX($A$3:A34)+1 -> 32 | C35: ='ISNTREE PRODUCT DETAILS'!C37 -> 20602R | F35: ='ISNTREE PRODUCT DETAILS'!G37 -> CHESTNUT AHA 8% CLEAR ESSENCE_100ml | G35: ='ISNTREE PRODUCT DETAILS'!O37 -> 60
A36: =MAX($A$3:A35)+1 -> 33 | C36: ='ISNTREE PRODUCT DETAILS'!C38 -> 20605R | F36: ='ISNTREE PRODUCT DETAILS'!G38 -> CHESTNUT BHA 2% CLEAR LIQUID_100ml | G36: ='ISNTREE PRODUCT DETAILS'!O38 -> 60
A37: =MAX($A$3:A36)+1 -> 34 | C37: ='ISNTREE PRODUCT DETAILS'!C39 -> 20604R | F37: ='ISNTREE PRODUCT DETAILS'!G39 -> CHESTNUT PHA 5% CLEAR CREAM_100ml | G37: ='ISNTREE PRODUCT DETAILS'!O39 -> 66
A38: =MAX($A$3:A37)+1 -> 35 | C38: ='ISNTREE PRODUCT DETAILS'!C40 -> 20606R | F38: ='ISNTREE PRODUCT DETAILS'!G40 -> CHESTNUT LHA JELLY CLEANSING OIL_150ml | G38: ='ISNTREE PRODUCT DETAILS'!O40 -> 40
A39: =MAX($A$3:A38)+1 -> 36 | C39: ='ISNTREE PRODUCT DETAILS'!C41 -> 20309R | F39: ='ISNTREE PRODUCT DETAILS'!G41 -> MUGWORT CALMING POWDER WASH_1g*25ea | G39: ='ISNTREE PRODUCT DETAILS'!O41 -> 50
A40: =MAX($A$3:A39)+1 -> 37 | C40: ='ISNTREE PRODUCT DETAILS'!C42 -> 20313R | F40: ='ISNTREE PRODUCT DETAILS'!G42 -> MUGWORT CALMING POWDER WASH_15g | G40: ='ISNTREE PRODUCT DETAILS'!O42 -> 60
A41: =MAX($A$3:A40)+1 -> 38 | C41: ='ISNTREE PRODUCT DETAILS'!C43 -> 20306R | F41: ='ISNTREE PRODUCT DETAILS'!G43 -> MUGWORT CALMING GAUZE MASK_10ea | G41: ='ISNTREE PRODUCT DETAILS'!O43 -> 30
A42: =MAX($A$3:A41)+1 -> 39 | C42: ='ISNTREE PRODUCT DETAILS'!C44 -> 20902R | F42: ='ISNTREE PRODUCT DETAILS'!G44 -> REAL ROSE CALMING MASK_100ml | G42: ='ISNTREE PRODUCT DETAILS'!O44 -> 66
A43: =MAX($A$3:A42)+1 -> 40 | C43: ='ISNTREE PRODUCT DETAILS'!C45 -> 20310R | F43: ='ISNTREE PRODUCT DETAILS'!G45 -> MUGWORT CALMING CLAY MASK_100ml | G43: ='ISNTREE PRODUCT DETAILS'!O45 -> 66
A44: =MAX($A$3:A43)+1 -> 41 | C44: ='ISNTREE PRODUCT DETAILS'!C46 -> 21005R | F44: ='ISNTREE PRODUCT DETAILS'!G46 -> ONION NEWPAIR CLEAR PAD_250ml (60ea) | G44: ='ISNTREE PRODUCT DETAILS'!O46 -> 30
A45: =MAX($A$3:A44)+1 -> 42 | C45: ='ISNTREE PRODUCT DETAILS'!C47 -> 21001 | F45: ='ISNTREE PRODUCT DETAILS'!G47 -> ONION NEWPAIR ESSENCE TONER_200ml | G45: ='ISNTREE PRODUCT DETAILS'!O47 -> 54
A46: =MAX($A$3:A45)+1 -> 43 | C46: ='ISNTREE PRODUCT DETAILS'!C48 -> 21008R | F46: ='ISNTREE PRODUCT DETAILS'!G48 -> ONION NEWPAIR B5 AMPOULE_50ml | G46: ='ISNTREE PRODUCT DETAILS'!O48 -> 60
A47: =MAX($A$3:A46)+1 -> 44 | C47: ='ISNTREE PRODUCT DETAILS'!C49 -> 21003R | F47: ='ISNTREE PRODUCT DETAILS'!G49 -> ONION NEWPAIR GEL CREAM_50ml | G47: ='ISNTREE PRODUCT DETAILS'!O49 -> 120
A48: =MAX($A$3:A47)+1 -> 45 | C48: ='ISNTREE PRODUCT DETAILS'!C50 -> 21002R | F48: ='ISNTREE PRODUCT DETAILS'!G50 -> ONION NEWPAIR CLEANSING FOAM_150ml | G48: ='ISNTREE PRODUCT DETAILS'!O50 -> 40
A49: =MAX($A$3:A48)+1 -> 46 | C49: ='ISNTREE PRODUCT DETAILS'!C51 -> 21201R | F49: ='ISNTREE PRODUCT DETAILS'!G51 -> YAM ROOT VEGAN MILK CLEANSER_220ml | G49: ='ISNTREE PRODUCT DETAILS'!O51 -> 40
A50: =MAX($A$3:A49)+1 -> 47 | C50: ='ISNTREE PRODUCT DETAILS'!C52 -> 21202R | F50: ='ISNTREE PRODUCT DETAILS'!G52 -> YAM ROOT VEGAN MILK TONER_200ml | G50: ='ISNTREE PRODUCT DETAILS'!O52 -> 28
A51: =MAX($A$3:A50)+1 -> 48 | C51: ='ISNTREE PRODUCT DETAILS'!C53 -> 21203R | F51: ='ISNTREE PRODUCT DETAILS'!G53 -> YAM ROOT VEGAN MILK CREAM_80ml | G51: ='ISNTREE PRODUCT DETAILS'!O53 -> 40
A52: =MAX($A$3:A51)+1 -> 49 | C52: ='ISNTREE PRODUCT DETAILS'!C54 -> 20907R | F52: ='ISNTREE PRODUCT DETAILS'!G54 -> PUFFY FACE FIT COOLING MASK_10ea | G52: ='ISNTREE PRODUCT DETAILS'!O54 -> 30
A53: =MAX($A$3:A52)+1 -> 50 | C53: ='ISNTREE PRODUCT DETAILS'!C55 -> 21101R | F53: ='ISNTREE PRODUCT DETAILS'!G55 -> COMFORTABLE MAGNESIUM TONER_500ml | G53: ='ISNTREE PRODUCT DETAILS'!O55 -> 32
A54: =MAX($A$3:A53)+1 -> 51 | C54: ='ISNTREE PRODUCT DETAILS'!C56 -> 21009R | F54: ='ISNTREE PRODUCT DETAILS'!G56 -> ONION NEWPAIR SPOT PATCH [BASIC]_24 patches (10mmx12ea/12mmx12ea) | G54: ='ISNTREE PRODUCT DETAILS'!O56 -> 100
A55: =MAX($A$3:A54)+1 -> 52 | C55: ='ISNTREE PRODUCT DETAILS'!C57 -> 21010R | F55: ='ISNTREE PRODUCT DETAILS'!G57 -> ONION NEWPAIR SPOT PATCH [SKIN FIT]_15 patches (12mmx15ea) | G55: ='ISNTREE PRODUCT DETAILS'!O57 -> 100
A56: =MAX($A$3:A55)+1 -> 53 | C56: ='ISNTREE PRODUCT DETAILS'!C58 -> 21301R | F56: ='ISNTREE PRODUCT DETAILS'!G58 -> HYPER NIACINAMIDE 20 SERUM_20ml | G56: ='ISNTREE PRODUCT DETAILS'!O58 -> 180
A57: =MAX($A$3:A56)+1 -> 54 | C57: ='ISNTREE PRODUCT DETAILS'!C59 -> 21302R | F57: ='ISNTREE PRODUCT DETAILS'!G59 -> HYPER RETINOL EX 1.0 SERUM_20ml | G57: ='ISNTREE PRODUCT DETAILS'!O59 -> 180
A58: =MAX($A$3:A57)+1 -> 55 | C58: ='ISNTREE PRODUCT DETAILS'!C60 -> 21303R | F58: ='ISNTREE PRODUCT DETAILS'!G60 -> HYPER VITAMIN C 23 SERUM_20ml | G58: ='ISNTREE PRODUCT DETAILS'!O60 -> 180
A59: =MAX($A$3:A58)+1 -> 56 | C59: ='ISNTREE PRODUCT DETAILS'!C61 -> 21304R | F59: ='ISNTREE PRODUCT DETAILS'!G61 -> HYPER ACID4 AHA BHA PHA LHA 30 SERUM_20ml | G59: ='ISNTREE PRODUCT DETAILS'!O61 -> 180
A60: =MAX($A$3:A59)+1 -> 57 | C60: ='ISNTREE PRODUCT DETAILS'!C62 -> 21204R | F60: ='ISNTREE PRODUCT DETAILS'!G62 -> HYALURONIC ACID DAILY SUN GEL _50ml | G60: ='ISNTREE PRODUCT DETAILS'!O62 -> 50
A61: =MAX($A$3:A60)+1 -> 58 | C61: ='ISNTREE PRODUCT DETAILS'!C63 -> 21011R | F61: ='ISNTREE PRODUCT DETAILS'!G63 -> YAM ROOT MILK TONE UP SUN CREAM_50ml | G61: ='ISNTREE PRODUCT DETAILS'!O63 -> 50
A62: =MAX($A$3:A61)+1 -> 59 | C62: ='ISNTREE PRODUCT DETAILS'!C64 -> 21101R | F62: ='ISNTREE PRODUCT DETAILS'!G64 -> ONION NEWPAIR SUNSCREEN_50ml | G62: ='ISNTREE PRODUCT DETAILS'!O64 -> 50
A63: 1 | C63: ='ISNTREE SAMPLE LIST'!C3 -> 10107R | F63: ='ISNTREE SAMPLE LIST'!E3 -> HYALURONIC ACID TONER_20ml | G63: ='ISNTREE SAMPLE LIST'!G3 -> 450
A64: 2 | C64: ='ISNTREE SAMPLE LIST'!C4 -> 10111R | F64: ='ISNTREE SAMPLE LIST'!E4 -> HYALURONIC ACID AQUA GEL CREAM (RENEWED)_2ml | G64: ='ISNTREE SAMPLE LIST'!G4 -> 2,500
A65: 3 | C65: ='ISNTREE SAMPLE LIST'!C5 -> 10112R | F65: ='ISNTREE SAMPLE LIST'!E5 -> HYALURONIC ACID MOIST CREAM_2ml | G65: ='ISNTREE SAMPLE LIST'!G5 -> 3,000
A66: 4 | C66: ='ISNTREE SAMPLE LIST'!C6 -> 10114R | F66: ='ISNTREE SAMPLE LIST'!E6 -> HYALURONIC ACID WATER ESSENCE_2ml | G66: ='ISNTREE SAMPLE LIST'!G6 -> 3,000
A67: 5 | C67: ='ISNTREE SAMPLE LIST'!C7 -> 10116R | F67: ='ISNTREE SAMPLE LIST'!E7 -> HYALURONIC ACID WATERY SUN GEL_2ml | G67: ='ISNTREE SAMPLE LIST'!G7 -> 2,500
A68: 6 | C68: ='ISNTREE SAMPLE LIST'!C8 -> 10117R | F68: ='ISNTREE SAMPLE LIST'!E8 -> HYALURONIC ACID NATURAL SUN CREAM_2ml | G68: ='ISNTREE SAMPLE LIST'!G8 -> 2,500
A69: 7 | C69: ='ISNTREE SAMPLE LIST'!C9 -> 10103R | F69: ='ISNTREE SAMPLE LIST'!E9 -> HYALURONIC ACID WATERY SUN GEL_10ml | G69: ='ISNTREE SAMPLE LIST'!G9 -> 600
A70: 8 | C70: ='ISNTREE SAMPLE LIST'!C10 -> 10119R | F70: ='ISNTREE SAMPLE LIST'!E10 -> ULTRA-LOW MOLECULAR HYALURONIC ACID TONER_2ml | G70: ='ISNTREE SAMPLE LIST'!G10 -> 3,000
A71: 9 | C71: ='ISNTREE SAMPLE LIST'!C11 -> 10118R | F71: ='ISNTREE SAMPLE LIST'!E11 -> ULTRA-LOW MOLECULAR HYALURONIC ACID SERUM_2ml | G71: ='ISNTREE SAMPLE LIST'!G11 -> 3,000
A72: 10 | C72: ='ISNTREE SAMPLE LIST'!C12 -> 10601R | F72: ='ISNTREE SAMPLE LIST'!E12 -> CHESTNUT AHA 8% CLEAR ESSENCE_2ml | G72: ='ISNTREE SAMPLE LIST'!G12 -> 3,000
A73: 11 | C73: ='ISNTREE SAMPLE LIST'!C13 -> 10602R | F73: ='ISNTREE SAMPLE LIST'!E13 -> CHESTNUT AHA 8% CLEAR ESSENCE_20ml | G73: ='ISNTREE SAMPLE LIST'!G13 -> 450
A74: 12 | C74: ='ISNTREE SAMPLE LIST'!C14 -> 10901R | F74: ='ISNTREE SAMPLE LIST'!E14 -> CHESTNUT BHA 2% CLEAR LIQUID_2ml | G74: ='ISNTREE SAMPLE LIST'!G14 -> 3,000
A75: 13 | C75: ='ISNTREE SAMPLE LIST'!C15 -> 10801R | F75: ='ISNTREE SAMPLE LIST'!E15 -> TW-REAL BIFIDA AMPOULE_2ml | G75: ='ISNTREE SAMPLE LIST'!G15 -> 3,000
A76: 14 | C76: ='ISNTREE SAMPLE LIST'!C16 -> 10802R | F76: ='ISNTREE SAMPLE LIST'!E16 -> TW-REAL EYE CREAM _2ml | G76: ='ISNTREE SAMPLE LIST'!G16 -> 2,000
A77: 15 | C77: ='ISNTREE SAMPLE LIST'!C17 -> 10202R | F77: ='ISNTREE SAMPLE LIST'!E17 -> GREEN TEA FRESH TONER_20ml | G77: ='ISNTREE SAMPLE LIST'!G17 -> 450
A78: 16 | C78: ='ISNTREE SAMPLE LIST'!C18 -> 10203R | F78: ='ISNTREE SAMPLE LIST'!E18 -> GREEN TEA FRESH SERUM_2ml | G78: ='ISNTREE SAMPLE LIST'!G18 -> 2,000
A79: 17 | C79: ='ISNTREE SAMPLE LIST'!C19 -> 10206R | F79: ='ISNTREE SAMPLE LIST'!E19 -> GREEN TEA FRESH CLEANSER_20ml | G79: ='ISNTREE SAMPLE LIST'!G19 -> 400
A80: 18 | C80: ='ISNTREE SAMPLE LIST'!C20 -> 10204R | F80: ='ISNTREE SAMPLE LIST'!E20 -> GREEN TEA FRESH CLEANSER_2ml | G80: ='ISNTREE SAMPLE LIST'!G20 -> 2,000
A81: 19 | C81: ='ISNTREE SAMPLE LIST'!C21 -> 11201R | F81: ='ISNTREE SAMPLE LIST'!E21 -> YAM ROOT VEGAN MILK CLEANSER_3ml | G81: ='ISNTREE SAMPLE LIST'!G21 -> 3,000
A82: 20 | C82: ='ISNTREE SAMPLE LIST'!C22 -> 10305R | F82: ='ISNTREE SAMPLE LIST'!E22 -> MUGWORT CALMING CLAY MASK_20ml | G82: ='ISNTREE SAMPLE LIST'!G22 -> 400
A83: 21 | C83: ='ISNTREE SAMPLE LIST'!C23 -> 10302R | F83: ='ISNTREE SAMPLE LIST'!E23 -> MUGWORT CALMING CLAY MASK_3ml | G83: ='ISNTREE SAMPLE LIST'!G23 -> 2,000
A84: 22 | C84: ='ISNTREE SAMPLE LIST'!C24 -> 11003R | F84: ='ISNTREE SAMPLE LIST'!E24 -> ONION NEWPAIR GEL CREAM_2ml | G84: ='ISNTREE SAMPLE LIST'!G24 -> 2,000
A85: 23 | C85: ='ISNTREE SAMPLE LIST'!C25 -> 11005R | F85: ='ISNTREE SAMPLE LIST'!E25 -> ONION NEWPAIR CLEAR PAD_8ml (2ea) | G85: ='ISNTREE SAMPLE LIST'!G25 -> 400
C86: ='ISNTREE SAMPLE LIST'!C26 -> 11205R | F86: ='ISNTREE SAMPLE LIST'!E26 -> HYALURONIC ACID DAILY SUN GEL_2ml | G86: ='ISNTREE SAMPLE LIST'!G26 -> 2,500
C87: ='ISNTREE SAMPLE LIST'!C27 -> 11206R | F87: ='ISNTREE SAMPLE LIST'!E27 -> YAM ROOT MILK TONE UP SUN CREAM_2ml | G87: ='ISNTREE SAMPLE LIST'!G27 -> 2,500
C88: ='ISNTREE SAMPLE LIST'!C28 -> 11207R | F88: ='ISNTREE SAMPLE LIST'!E28 -> ONION NEWPAIR SUNSCREEN_2ml | G88: ='ISNTREE SAMPLE LIST'!G28 -> 2,500
C89: ='ISNTREE SAMPLE LIST'!C29 -> 11208R | F89: ='ISNTREE SAMPLE LIST'!E29 -> ONION NEWPAIR SUNSCREEN_10ml | G89: ='ISNTREE SAMPLE LIST'!G29 -> 600
C90: ='ISNTREE SAMPLE LIST'!C30 -> 30324 | F90: ='ISNTREE SAMPLE LIST'!E30 -> ISNTREE TRAVEL KIT | G90: ='ISNTREE SAMPLE LIST'!G30 -> 30
A91: SUB TOTAL
A93: GRAND TOTAL
